Workbook

Sheet Deklaration
A4: Version 13.0 / 2024
A5: 2024-03-05
A6: Liquidationsgewinn für die privilegierte Besteuerung
A7: bei Aufgabe der selbständigen Erwerbstätigkeit
E10: Details zu den Veranlagungsverfügungen
A17: Angaben zur steuerpflichtigen Person, welche die selbstständige Erwerbstätigkeit aufgibt sowie zur Realisation
A18: der stillen Reserven.
A20: Steuerpflichtige Person
A21: Person-Id. | K21: Geschlecht
A22: Name/Vorname | C22: =Name&" "&Rufname -> 
A23: Strasse | C23: =AdrDetStrasse&" "&AdrDetHausNr&AdrDetHausNrAlpha ->  | K23: Datum der Liquidation | N23: =IF(M23="","Liquidationsdatum muss erfasst werden!","") -> Liquidationsdatum muss erfasst werden!
A24: PLZ/Wohnort | C24: =AdrDetPLZ&" "&AdrDetOrt ->  | K24: Geburtsdatum | N24: =IF(M24="","Geburtsdatum muss erfasst werden!","") -> Geburtsdatum muss erfasst werden!
A25: Geschäftsort | K25: Alter im Zeitpunkt der Liquidation | M25: =IF(M23="","",DATEDIF(M24,M23,"y")) -> 
A26: Parzellen-Nr.
A27: =IF(M25<=54,"Altersgrenze nicht erreicht: Deklaration ist nur möglich, wenn Unfähigkeit zur Weiterführung der selbst. Erwerbstätigkeit infolge Invalidität vorliegt.","") -> 
A29: Wurde in früheren Jahren eine privilegierte Besteuerung eines Liquidationsgewinns geltend gemacht? | M29: Nein
A30: =IF(M29="Nein","","Die privilegierte Besteuerung des Liquidationsgewinns kann nur einmal geltend gemacht werden!") -> 
M31: alle Beträge in CHF
A32: A | B32: Berechnung des Liquidationsgewinns im Liquidationsjahr / Liegenschaften | N32: Staat | P32: Bund
B33: Verkauf / Überführung der geschäftlichen Liegenschaften
A34: 1 | B34: Verkaufspreis / Überführungswert der Liegenschaften
A35: 2 | B35: ./. Anlagekosten der Liegenschaften
A36: 3 | B36: Wertzuwachsgewinn Liegenschaften (Besteuerung nur bei Bund) | M36: =M34-M35 -> 0 | P36: =IF(M36<0,0,M36) -> 0 | Q36: =IF(M36<0,"Hinweis: Verluste werden nicht angerechnet","") -> 
A38: 10 | B38: Anlagekosten der Liegenschaften (Ziffer 2), bzw. Verkaufspreis / Überführungswert
B39: der Liegenschaften (Ziffer 1), wenn dieser tiefer ist als die Anlagekosten | M39: =IF(M36<0,M34,M35) -> 0
A40: 11 | B40: ./. Buchwert der geschäftlichen Liegenschaften
A41: 12 | B41: ./. Anteil Liquidationskosten
A42: 13 | B42: Kapitalgewinn Liegenschaften: wiedereingebrachte Abschreibungen | N42: =M39-M40-M41 -> 0 | P42: =N42 -> 0
A45: 20 | B45: Realisierung stiller Reserven auf den restlichen Aktiven
A46: 21 | B46: ./. Anteil Liquidationskosten
A47: 22 | B47: Kapitalgewinn auf restlichen Aktiven, netto | N47: =M45-M46 -> 0 | P47: =N47 -> 0
A48: 30 | B48: Total Liquidationsgewinn im Liquidationsjahr | N48: =SUM(N42+N47) -> 0 | P48: =P36+P42+P47 -> 0
A50: B | B50: Auflösung von stillen Reserven im Vorjahr
A51: 40 | B51: Auflösung stille Reserven im Vorjahr | F51: =IF(M23="","",YEAR(M23)-1) -> 
A52: 41 | B52: ./. Aufwand, verursacht durch Realisierung dieser stillen Reserven
A53: 42 | B53: Aufgelöste stille Reserven im Vorjahr | N53: =M51-M52 -> 0 | P53: =N53 -> 0
A54: 50 | B54: Total realisierte stille Reserven | N54: =N48+N53 -> 0 | P54: =P48+P53 -> 0
A56: C | B56: Übrige Abzüge | K56: Staat | M56: Bund
A57: 60 | B57: Verlustvortrag, der im Liquidationsjahr nicht bereits
B58: mit Einkommen aus ordentlicher Geschäftstätigkeit verrechnet werden konnte
A59: 61 | B59: Verlustüberschuss aus ordentlicher Geschäftstätigkeit des Liquidationsjahres
A60: 62 | B60: sonstige Abzüge, z.B. Beitragsüberhang aus Einkauf 2. Säule im Liquidationsjahr
A61: 63 | B61: ./. Summe der Abzüge | K61: =SUM(K58:K60) -> 0 | M61: =SUM(M58:M60) -> 0 | N61: =K61 -> 0 | P61: =M61 -> 0
A62: 70 | B62: Total massgebender Liquidationsgewinn vor AHV-Abzug | N62: =N54-N61 -> 0 | P62: =P54-P61 -> 0
A64: D | B64: Abzug der persönlichen AHV-Beiträge
A65: 80 | B65: ./. Anrechnung AHV-Anteil vom Bund (inkl. Verwaltungskosten) | I65: 0.1 | N65: =P65 -> 0 | P65: =P62*I65 -> 0
A67: 90 | B67: Steuerbarer Liquidationsgewinn | F67: Übertrag auf die nächste Seite | N67: =N62-N65 -> 0 | P67: =P62-P65 -> 0
N70: Staat | P70: Bund
A71: =A67 -> 90 | B71: Steuerbarer Liquidationsgewinn | F71: Übertrag aus vorheriger Seite | N71: =N67 -> 0 | P71: =P67 -> 0
A73: E | B73: Berechnung fiktiver Einkauf | G73: =IF(M25>69,"Einkauf beschränkt bis 70. Altersjahr!","") -> Einkauf beschränkt bis 70. Altersjahr!
B74: AHV-pflichtiges Einkommen aus der selbst. Erwerbstätigkeit (SE) der letzten 5 Jahre
B75: vor der Liquidation / dem ordentlichen Rentenalter
I76: Gewinn aus SE
A78: 101 | B78: Einkommen aus SE im Jahr 1 vor Liquidation / dem ord. Rentenalter
A79: =A78+1 -> 102 | B79: Einkommen aus SE im Jahr 2 vor Liquidation / dem ord. Rentenalter
A80: =A79+1 -> 103 | B80: Einkommen aus SE im Jahr 3 vor Liquidation / dem ord. Rentenalter
A81: =A80+1 -> 104 | B81: Einkommen aus SE im Jahr 4 vor Liquidation / dem ord. Rentenalter
A82: =A81+1 -> 105 | B82: Einkommen aus SE im Jahr 5 vor Liquidation / dem ord. Rentenalter
A83: =A82+1 -> 106 | B83: Massgebende Summe der Einkommen aus der selbst. Erwerbstätigkeit | I83: =SUM(I78:I82) -> 0
A84: 107 | B84: Durchschnittliches Einkommen aus SE der letzten | G84: =IF(I78="","",COUNT(I78:I82)) ->  | H84: Jahre | I84: =IF(I78="","",I83/G84) -> 
A85: 108 | B85: Anrechenbares Einkommen (maximale Begrenzung 10-facher oberer Grenzbetrag nach BVG) | K85: =IF(OR(M23="",YEAR(M23)=""),"",IF(VLOOKUP(YEAR(M23),'Tabelle 3. Säule'!$A$57:$B$102,2,TRUE)*10>I84,I84,(VLOOKUP(YEAR(M23),'Tabelle 3. Säule'!$A$57:$B$102,2,TRUE)*10))) ->  | Q85: =IF(K85<I84,"Begrenzung auf 10-fachen BVG-Betrag","") -> 
A86: 109 | B86: Anzahl Jahre ab 25 bis Liquidationsjahr (Begrenzt bis ordentliches Rentenalter: m = 65 / w = 64) | K86: =IF(M25="","",IF(AND(M21="Mann",YEAR(M23)-YEAR(M24)-25>39),40,IF(AND(M21="Frau",YEAR(M23)-YEAR(M24)-25>38),39,YEAR(M23)-YEAR(M24)-25+1))) -> 
A87: 110 | B87: Versicherbare Summe aller Einkommen aus SE | K87: =IF(I78="","",K85*K86) -> 
A88: 111 | B88: Davon maximal mögliche Vorsorge (15%) | M88: =IF(I78="",0,K87*0.15) -> 0
B90: Vorsorgeguthaben 2. Säule inkl. getätigte Vorbezüge (WEF usw.)
A92: 120
A93: =A92+1 -> 121
A94: =A93+1 -> 122
A95: =A94+1 -> 123
A96: 124 | B96: ./. Abzug für 2. Säule-Guthaben | M96: =SUM(K92:K95) -> 0
B98: Angaben für die Ermittlung des Differenzbetrages für grosse/kleine Säule 3a
B99: Aktuell vorhandene Vermögen und frühere Auflösung von Säule 3a-Konten
A100: =A96+1 -> 125
A101: =A100+1 -> 126
A102: =A101+1 -> 127
A103: =A102+1 -> 128 | B103: Total der vorhandenen Säule 3a | K103: =SUM(K100:K102) -> 0
A104: =A103+1 -> 129 | B104: ./. Anrechnung Differenzbetrag der kleinen Säule 3a (vgl. Tabelle 3. Säule) | K104: =IF(M23="","",IF(YEAR(M24)<1963,VLOOKUP("1962 u. früher ",'Tabelle 3. Säule'!A13:Q254,Deklaration!Q104,TRUE),IF(YEAR(M24)>1962,VLOOKUP(YEAR(M24),'Tabelle 3. Säule'!A13:Q254,Deklaration!Q104,TRUE),""))) ->  | Q104: =IF(M23="","",(YEAR(M23)-'Tabelle 3. Säule'!C12)+3) -> 
A106: 140 | B106: ./. Abzug Anteil der vorhanden Säule 3a | M106: =IF(K104="",0,IF(K103-K104<0,0,K103-K104)) -> 0
A107: 150 | B107: Maximal möglicher fiktiver Einkauf | M107: =IF(M88-M96-M106<0,0,M88-M96-M106) -> 0
A109: 160 | B109: ./. Anteil fiktiver Einkauf | I109: =IF(M25>69,"Einkauf beschränkt bis 70. Altersjahr","") -> Einkauf beschränkt bis 70. Altersjahr | N109: =IF(M25>69,0,IF(M107>N71,N71,M107)) -> 0 | P109: =IF(M25>69,0,IF(M107>P71,P71,M107)) -> 0
B110: Besteuerung gemäss § 36bis StG und 1/5 des Tarifes gemäss Art. 36 DBG
A112: 170 | B112: Übriger Liquidationsgewinn | N112: =IF(N71-N109<0,0,ROUND(N71,0)-ROUND(N109,0)) -> 0 | P112: =IF(P71-P109<0,0,ROUND(P71,0)-ROUND(P109,0)) -> 0
B113: Besteuerung gemäss § 36bis StG (mind. 5%) und zum Satz von 1/5 gemäss Art. 36 DBG (mind. 2%)
B119: Datum: | C119: =TODAY() -> 2024-03-05

Sheet Tabelle 3. Säule
F1: Eidgenössisches Departement des Innern EDI
F2: Bundesamt für Sozialversicherungen BSV
F3: Mathematik, Analysen, Statistik
A7: Tabelle zur Berechnung des grösstmöglichen 3a-Guthaben (nach Art. 60a | K7: http://www.bsv.admin.ch/themen/vorsorge/00039/index.html?lang=de
A8: Abs. 2 BVV 2 und Art. 7 Abs. 1 Bst. a BVV 3) nach Jahrgang
A9: (Beginn am 1. Januar des Jahres, in dem das 25. Altersjahr vollendet wird)
A11: Geburtsjahr | B11: Beginn 1. Jan. | C11: Stand 31. Dez. | D11: Stand 31. Dez. | E11: Stand 31. Dez. | F11: Stand 31. Dez. | G11: Stand 31. Dez. | H11: Stand 31. Dez. | I11: Stand 31. Dez. | J11: Stand 31. Dez. | K11: Stand 31. Dez.
C12: 2016 | D12: 2017 | E12: 2018 | F12: 2019 | G12: 2020 | H12: 2021 | I12: 2022 | J12: 2023 | K12: 2024
A13: 1962 u. früher | B13: 1987 | C13: 252519 | D13: 261813 | E13: 271199 | F13: 280737 | G13: 290370 | H13: 300157 | I13: 310042 | J13: 320198 | K13: 331257
A14: 1963 | B14: 1988 | C14: 242521 | D14: 251714 | E14: 260999 | F14: 270435 | G14: 279966 | H14: 289648 | I14: 299428 | J14: 309478 | K14: 320403
A15: 1964 | B15: 1989 | C15: 232506 | D15: 241599 | E15: 250783 | F15: 260117 | G15: 269544 | H15: 279122 | I15: 288797 | J15: 298741 | K15: 309531
A16: 1965 | B16: 1990 | C16: 222876 | D16: 231873 | E16: 240959 | F16: 250195 | G16: 259523 | H16: 269001 | I16: 278575 | J16: 288416 | K16: 299078
A17: 1966 | B17: 1991 | C17: 212999 | D17: 221897 | E17: 230884 | F17: 240019 | G17: 249245 | H17: 258621 | I17: 268090 | J17: 277827 | K17: 288356
A18: 1967 | B18: 1992 | C18: 203502 | D18: 212305 | E18: 221196 | F18: 230234 | G18: 239363 | H18: 248639 | I18: 258009 | J18: 267645 | K18: 278047
A19: 1968 | B19: 1993 | C19: 193229 | D19: 201929 | E19: 210717 | F19: 219650 | G19: 228672 | H19: 237842 | I19: 247104 | J19: 256631 | K19: 266895
A20: 1969 | B20: 1994 | C20: 182913 | D20: 191510 | E20: 200193 | F20: 209021 | G20: 217937 | H20: 227000 | I20: 236153 | J20: 245571 | K20: 255696
A21: 1970 | B21: 1995 | C21: 172993 | D21: 181491 | E21: 190074 | F21: 198801 | G21: 207615 | H21: 216574 | I21: 225623 | J21: 234935 | K21: 244928
A22: 1971 | B22: 1996 | C22: 163151 | D22: 171550 | E22: 180034 | F22: 188660 | G22: 197373 | H22: 206230 | I22: 215175 | J22: 224383 | K22: 234244
A23: 1972 | B23: 1997 | C23: 153686 | D23: 161991 | E23: 170379 | F23: 178909 | G23: 187524 | H23: 196283 | I23: 205129 | J23: 214236 | K23: 223970
A24: 1973 | B24: 1998 | C24: 144352 | D24: 152563 | E24: 160857 | F24: 169292 | G24: 177810 | H24: 186472 | I24: 195220 | J24: 204228 | K24: 213837
A25: 1974 | B25: 1999 | C25: 135376 | D25: 143498 | E25: 151701 | F25: 160044 | G25: 168470 | H25: 177038 | I25: 185692 | J25: 194605 | K25: 204093
A26: 1975 | B26: 2000 | C26: 126658 | D26: 134693 | E26: 142808 | F26: 151062 | G26: 159399 | H26: 167876 | I26: 176438 | J26: 185258 | K26: 194630
A27: 1976 | B27: 2001 | C27: 118276 | D27: 126227 | E27: 134257 | F27: 142425 | G27: 150676 | H27: 159066 | I27: 167539 | J27: 176271 | K27: 185530
A28: 1977 | B28: 2002 | C28: 110015 | D28: 117883 | E28: 125830 | F28: 133915 | G28: 142080 | H28: 150384 | I28: 158771 | J28: 167414 | K28: 176563
A29: 1978 | B29: 2003 | C29: 102072 | D29: 109861 | E29: 117728 | F29: 125731 | G29: 133814 | H29: 142036 | I29: 150339 | J29: 158899 | K29: 167941
A30: 1979 | B30: 2004 | C30: 94193 | D30: 101903 | E30: 109690 | F30: 117613 | G30: 125615 | H30: 133754 | I30: 141975 | J30: 150451 | K30: 159387
A31: 1980 | B31: 2005 | C31: 86487 | D31: 94119 | E31: 101829 | F31: 109673 | G31: 117596 | H31: 125655 | I31: 133795 | J31: 142189 | K31: 151022
A32: 1981 | B32: 2006 | C32: 78826 | D32: 86382 | E32: 94014 | F32: 101780 | G32: 109624 | H32: 117604 | I32: 125663 | J32: 133975 | K32: 142706
A33: 1982 | B33: 2007 | C33: 71352 | D33: 78834 | E33: 86390 | F33: 94080 | G33: 101847 | H33: 109749 | I33: 117729 | J33: 125963 | K33: 134593
A34: 1983 | B34: 2008 | C34: 63857 | D34: 71264 | E34: 78745 | F34: 86358 | G34: 94048 | H34: 101871 | I34: 109773 | J34: 117927 | K34: 126457
A35: 1984 | B35: 2009 | C35: 56563 | D35: 63897 | E35: 71303 | F35: 78843 | G35: 86457 | H35: 94205 | I35: 102030 | J35: 110106 | K35: 118539
A36: 1985 | B36: 2010 | C36: 49186 | D36: 56445 | E36: 63778 | F36: 71242 | G36: 78780 | H36: 86451 | I36: 94199 | J36: 102197 | K36: 110530
A37: 1986 | B37: 2011 | C37: 41953 | D37: 49140 | E37: 56400 | F37: 63790 | G37: 71254 | H37: 78850 | I37: 86521 | J37: 94442 | K37: 102679
A38: 1987 | B38: 2012 | C38: 34737 | D38: 41852 | E38: 49039 | F38: 56355 | G38: 63745 | H38: 71265 | I38: 78861 | J38: 86706 | K38: 94846
A39: 1988 | B39: 2013 | C39: 27627 | D39: 34672 | E39: 41786 | F39: 49030 | G39: 56347 | H39: 63793 | I39: 71314 | J39: 79083 | K39: 87128
A40: 1998 | B40: 2014 | C40: 20563 | D40: 27537 | E40: 34580 | F40: 41752 | G40: 48996 | H40: 56369 | I40: 63816 | J40: 71510 | K40: 79460
A41: 1990 | B41: 2015 | C41: 13621 | D41: 20525 | E41: 27498 | F41: 34599 | G41: 41771 | H41: 49072 | I41: 56446 | J41: 64066 | K41: 71923
A42: 1991 | B42: 2016 | C42: 6768 | D42: 13604 | E42: 20508 | F42: 27539 | G42: 34640 | H42: 41870 | I42: 49172 | J42: 56719 | K42: 64484
A43: 1992 | B43: 2017 | C43: 0 | D43: 6768 | E43: 13604 | F43: 20566 | G43: 27597 | H43: 34757 | I43: 41987 | J43: 49463 | K43: 57137
A44: 1993 | B44: 2018 | D44: 0 | E44: 6768 | F44: 13662 | G44: 20624 | H44: 27714 | I44: 34874 | J44: 42279 | K44: 49863
A45: 1994 | B45: 2019 | F45: 6826 | G45: 13720 | H45: 20741 | I45: 27831 | J45: 35166 | K45: 42661
A46: 1995 | B46: 2020 | G46: 6826 | H46: 13777 | I46: 20798 | J46: 28062 | K46: 35469
A47: 1996 | B47: 2021 | H47: 6883 | I47: 13835 | J47: 21030 | K47: 28348
A48: 1997 | B48: 2022 | I48: 6883 | J48: 14008 | K48: 21239
A49: 1998 | B49: 2023 | J49: 7056 | K49: 14200
A50: 1999 | B50: 2024 | K50: 7056
A55: Berufliche Vorsorge: oberer Grenzbetrag nach BVG pro Jahr
A56: Jahr | B56: Betrag
A57: 2006 | B57: 77400
A58: 2007 | B58: 79560
A59: 2008 | B59: 79560
A60: 2009 | B60: 82080
A61: 2010 | B61: 82080
A62: 2011 | B62: 83520
A63: 2012 | B63: 83520
A64: 2013 | B64: 84240
A65: 2014 | B65: 84240
A66: 2015 | B66: 84600
A67: 2016 | B67: 84600
A68: 2017 | B68: 84600
A69: 2018 | B69: 84600
A70: 2019 | B70: 85320
A71: 2020 | B71: 85320
A72: 2021 | B72: 86040
A73: 2022 | B73: 86040
A74: 2023 | B74: 88200
A75: 2024 | B75: 88200
A82: Parameter für 2013 angepasst: 07.01.2013/P. Gysin
A83: Parameter für 2014 angepasst: 09.12.2013/P. Gysin
A84: Parameter für 2015 angepasst: 02.12.2014/P. Gysin
A85: Parameter für 2016 angepasst: 29.12.2015/P. Gysin
A86: Parameter für 2017 angepasst: 27.12.2016/P. Gysin
A87: Parameter für 2018 angepasst: 08.01.2018/P. Gysin
A88: Parameter für 2019 angepasst: 08.01.2019/M Cueni
A89: Parameter für 2020 angepasst: 08.01.2020/M Cueni
A90: Parameter für 2021 angepasst: 17.03.2021/M Cueni
A91: Parameter für 2022 angepasst: 13.01.2022/S. Di Biase
A92: Parameter für 2023 angepasst: 16.01.2023/S. Di Biase
A93: Parameter für 2024 angepasst: 15.01.2024/S. Di Biase

Sheet Tabelle1 (hidden)
A1: Alle verfügbaren Office-Variablen
A2: Siehe Lieferschein ST40sa02.doc
A4: Variable | B4: Inhalt
A5: PersID
A6: RegisterNr
A7: RegisterNrKAST
A8: PersArt
A9: Name
A10: Rufname
A11: Bestand
A12: SteuerArt
A13: SteuerArtBez
A14: EreigVon
A15: EreigBis
A16: SteuerFallNr
A17: Periode
A18: PriGde
A19: PriGdeBez
A20: PriGdePlz
A21: PriGdeTel
A22: VeranlagungsGde
A23: VeranlagungsGdeBez
A24: VeranlagungsGdePlz
A25: VeranlagungsGdeTel
A26: Sachb
A27: SachbBez
A28: SachbTel
A29: SachbAbt
A30: LogUser
A31: LogUserBez
A32: LogUserTel
A33: AdrZeile1
A34: AdrZeile2
A35: AdrZeile3
A36: AdrZeile4
A37: AdrZeile5
A38: AdrZeile6
A39: AdrZeile7
A40: AdrDetPersID
A41: AdrDetName
A42: AdrDetRufname
A43: AdrDetZus1
A44: AdrDetStrasse
A45: AdrDetHausNr
A46: AdrDetHausNrAlpha
A47: AdrDetPLZ
A48: AdrDetOrt
A49: AdrDetNameP
A50: AdrDetRufnameP
A51: BetrifftAnrede
A52: BetrifftTitel
A53: BetrifftName
A54: BetrifftNameP
A55: BetrifftAdrZus1
A56: BetrifftAdrZus2
A57: BetrifftPostfach
A58: BetrifftStrasse
A59: BetrifftPlzOrt
A60: BetrifftAdrZeile1
A61: BetrifftAdrZeile2
A62: BetrifftAdrZeile3
A63: BetrifftAdrZeile4
A64: BetrifftAdrZeile5
A65: BetrifftAdrZeile6
A66: BetrifftAdrZeile7
A67: BetrifftDetPersID
A68: BetrifftDetName
A69: BetrifftDetRufname
A70: BetrifftDetZus1
A71: BetrifftDetStrasse
A72: BetrifftDetHausNr
A73: BetrifftDetHausNrAlp
A74: BetrifftDetPLZ
A75: BetrifftDetOrt
A76: BetrifftDetNameP
A77: BetrifftDetRufnameP
A78: BAnrede1
A79: BAnrede2
A80: AbteilungsName1
A81: AbteilungsName2
A82: AbteilungsPostfach
A83: AbteilungsStrasse
A84: AbteilungsPlzOrt
A85: AbteilungsTelefon
A86: AbteilungsFax
A87: AbteilungsAbsend1
A88: AbteilungsAbsend2
A89: AbteilungsGemeinde
A90: BetrifftEinzeilig
